bitfinex/quotes_ETHUSD_20260209
["timestamp","ask_amount","ask_price","bid_price","bid_amount"]
[1770651327469,0.92271476,2051.4,2050.1,0.06803548]
[1770651327671,1.21856112,2051.6,2050.4,0.06803548]
[1770651327856,1.21867992,2051.4,2050.4,0.06803548]
[1770651328159,2.14139468,2051.4,2049.9,0.06803548]
[1770651328473,4.87138737,2052.9,2051.3,0.97399532]
[1770651328678,1.85059411,2052.8,2051.8,0.06803548]
[1770651328968,1.85059411,2052.8,2051.3,0.97399532]
[1770651328969,4.23896878,2052.7,2051.9,0.06803548]
[1770651329168,4.23896878,2052.7,2051.7,0.06803548]
[1770651329370,4.23896878,2052.7,2052.4,0.06803548]
[1770651329569,0.92271476,2052.6,2051.8,0.06803548]
[1770651329741,1.21802679,2052.5,2051.6,0.06803548]
[1770651330141,1.21802679,2052.5,2051.4,0.06803548]
[1770651330360,0.92271476,2052.2,2051.0,0.06803548]
[1770651330567,0.1024,2052.4,2051.9,0.06803548]
[1770651330739,0.1024,2052.4,2051.6,0.06803548]
[1770651331238,0.1024,2052.1,2051.2,0.06803548]
[1770651331665,0.1024,2052.1,2050.8,0.06803548]
[1770651331866,1.21832358,2052.0,2050.8,0.06803548]
[1770651332049,1.21832358,2052.0,2050.4,0.06803548]
[1770651332249,1.21832358,2052.0,2050.9,0.06803548]
[1770651333151,1.21832358,2052.0,2051.2,0.06803548]
[1770651333354,0.002,2051.8,2051.2,0.06803548]
[1770651334041,0.002,2051.8,2050.7,0.06803548]
[1770651334042,0.002,2051.8,2051.0,0.06803548]
[1770651334472,0.002,2051.8,2050.7,0.06803548]
[1770651334675,0.002,2051.8,2051.0,0.06803548]
[1770651335054,0.002,2051.8,2050.7,0.06803548]
[1770651335267,0.002,2051.8,2051.0,0.06803548]
[1770651335577,0.002,2051.8,2051.1,0.06803548]
[1770651335743,0.002,2051.8,2050.8,0.06803548]
[1770651335949,0.002,2051.8,2051.1,0.06803548]
[1770651336155,0.002,2051.8,2051.2,0.06803548]
[1770651336391,4.87329434,2052.1,2051.6,0.06803548]
[1770651336682,4.8717198,2052.7,2051.9,0.06803548]
[1770651336849,4.8717198,2052.7,2051.3,0.06803548]
[1770651337049,5.79443456,2052.7,2051.3,0.06803548]
[1770651337470,4.8717198,2052.7,2051.6,0.07309942]
[1770651337671,4.8717198,2052.7,2051.2,0.07309942]
[1770651337870,0.92271476,2052.6,2050.8,1.28706428]
[1770651338049,2.14074155,2052.5,2051.1,0.07309942]
[1770651338251,3.408,2052.4,2051.4,0.07309942]
[1770651338558,4.33071476,2052.4,2050.9,0.07309942]
[1770651339181,0.92271476,2052.3,2050.9,0.07309942]
[1770651339697,0.92271476,2052.1,2049.9,0.06803548]
[1770651339879,0.92271476,2051.9,2050.4,0.07309942]
[1770651340053,2.1411571,2051.8,2050.4,0.07309942]
[1770651341082,2.1411571,2051.8,2050.7,0.07309942]
[1770651341583,1.21844234,2051.8,2051.0,0.07309942]
[1770651342282,4.87376937,2052.0,2051.3,0.07309942]
[1770651342780,4.87376937,2052.0,2051.0,0.07309942]
[1770651343357,4.87376937,2052.0,2050.7,0.07309942]
[1770651344169,0.92271476,2051.8,2050.4,0.07309942]
[1770651344462,6.08571476,2051.6,2049.9,0.06803548]
[1770651344673,6.18811476,2051.5,2049.7,4.31295984]
[1770651344888,3.407,2051.7,2049.6,0.07309942]
[1770651344889,6.08571476,2051.0,2049.6,0.07309942]
[1770651345088,3.407,2050.9,2049.6,0.07309942]
[1770651345386,9.49271476,2050.9,2049.3,0.06803548]
[1770651345788,6.11170698,2050.8,2049.1,1.22002278]
[1770651346103,6.11170698,2050.8,2049.6,0.07309942]
[1770651346104,5.163,2050.8,2049.6,0.07309942]
[1770651346282,5.163,2050.8,2049.3,1.29299067]
[1770651346283,7.33080289,2050.7,2049.3,0.07309942]
[1770651346470,6.11170698,2050.5,2049.2,0.07309942]
[1770651347065,6.11170698,2050.5,2048.9,0.06803548]
[1770651347266,0.94870698,2050.5,2048.9,0.06803548]
[1770651347803,1.32149591,2050.7,2049.5,0.07309942]
[1770651347988,1.21909591,2050.7,2049.5,1.29288348]
[1770651348187,4.87638367,2050.8,2049.5,0.07309942]
[1770651348378,4.87638367,2050.8,2050.6,0.001]
[1770651348578,4.87638367,2050.8,2049.8,0.07309942]
[1770651348778,4.87638367,2050.8,2049.8,0.07409942]
[1770651349393,4.87638367,2050.8,2049.8,0.001]
[1770651350698,4.87638367,2050.8,2049.9,0.07309942]
[1770651351912,1.21903647,2050.8,2050.2,0.07309942]
[1770651352120,1.21862052,2051.5,2051.1,0.07309942]
[1770651352321,4.8757865,2051.8,2050.8,0.07309942]
[1770651352322,0.002,2051.8,2050.8,0.07309942]
[1770651353517,0.002,2051.8,2051.1,1.29192589]
[1770651353813,0.002,2051.8,2051.5,0.07309942]
[1770651354185,0.002,2051.8,2051.1,1.29194994]
[1770651354391,0.002,2051.8,2050.8,0.07309942]
[1770651355828,0.95070698,2051.8,2050.2,1.29244413]
[1770651356135,0.94870698,2051.6,2049.9,1.02786814]
[1770651356442,2.2697275,2051.5,2049.9,0.07309942]
[1770651356917,2.2697275,2051.5,2050.2,0.07309942]
[1770651357122,0.94870698,2051.4,2049.8,0.001]
[1770651357302,0.94870698,2051.2,2049.8,0.001]
[1770651357700,1.05110698,2051.1,2049.8,0.001]
[1770651358618,1.2189176,2051.0,2049.9,0.07309942]
[1770651359518,1.2189176,2051.0,2049.8,0.001]
[1770651359693,2.16762458,2051.0,2049.8,0.001]
[1770651359898,1.2189176,2051.0,2049.9,0.07309942]
[1770651360613,4.8756704,2051.1,2049.9,0.07309942]
[1770651361039,4.8756704,2051.2,2050.2,0.07309942]
[1770651361523,0.002,2050.8,2050.5,0.07309942]
[1770651362116,4.62578451,2051.3,2050.5,0.07309942]
[1770651362324,4.62578451,2051.3,2050.8,0.07309942]
[1770651362507,0.002,2051.8,2051.1,0.07309942]
[1770651362707,0.002,2051.8,2051.4,0.07309942]
[1770651363095,0.004,2051.8,2051.1,0.07309942]
[1770651363400,0.004,2051.8,2051.5,0.07309942]
[1770651363401,0.002,2051.8,2051.5,0.07309942]
[1770651364529,3.407,2052.4,2051.5,0.07309942]
[1770651364530,1.21771321,2053.1,2052.5,0.07309942]
[1770651364700,1.21678185,2054.6,2053.5,0.07309942]
[1770651364895,0.94870698,2054.4,2052.8,0.07309942]
[1770651365100,0.94870698,2054.4,2052.5,2.24588634]
[1770651365101,0.94870698,2054.4,2052.5,0.07309942]
[1770651365338,0.95070698,2054.3,2052.8,0.07309942]
[1770651365623,3.409,2054.2,2052.5,1.21799864]
[1770651365824,3.407,2054.2,2053.2,0.07309942]
[1770651366025,0.002,2054.1,2053.2,0.07309942]
[1770651366228,0.002,2054.1,2052.9,0.07309942]
[1770651366430,1.21707803,2054.1,2053.6,0.07309942]
[1770651366606,4.86712742,2054.8,2053.6,0.07309942]
[1770651366607,4.86614239,2055.1,2054.2,0.07309942]
[1770651366797,0.002,2055.0,2053.9,0.07309942]
[1770651366997,0.002,2055.0,2054.2,0.07309942]
[1770651367212,0.002,2054.9,2054.6,0.07309942]
[1770651367399,0.002,2055.0,2054.6,0.07309942]
[1770651367734,1.21642662,2055.2,2053.6,0.07309942]
[1770651367735,2.1651336,2055.2,2053.6,0.07309942]
[1770651367931,2.1651336,2055.2,2053.4,0.07309942]
[1770651367932,1.05110698,2054.7,2053.4,0.07309942]
[1770651368114,3.406,2054.6,2053.6,0.07309942]
[1770651368438,3.406,2054.6,2053.7,0.95476872]
[1770651368439,0.002,2054.6,2053.7,0.95476872]
[1770651368617,0.002,2054.6,2053.9,0.07309942]
[1770651368818,0.002,2054.6,2054.2,0.07309942]
[1770651369128,0.002,2054.6,2053.9,0.07309942]
[1770651369300,0.002,2054.6,2054.3,0.07309942]
[1770651369502,4.8657065,2055.4,2054.3,0.07309942]
[1770651369751,4.8657065,2055.4,2054.7,0.07309942]
[1770651370034,4.8657065,2055.5,2054.8,0.07309942]
[1770651370203,4.8657065,2055.5,2055.1,0.07309942]
[1770651370537,4.8657065,2055.5,2055.1,0.01309942]
[1770651370704,4.86373019,2056.1,2055.4,0.07309942]
[1770651371016,4.86373019,2056.1,2055.1,0.01309942]
[1770651371218,4.86373019,2056.1,2055.3,0.07309942]
[1770651371421,4.86373019,2056.1,2055.4,0.07309942]
[1770651371809,4.86373019,2056.1,2054.8,0.07309942]
[1770651372010,4.86373019,2056.1,2054.6,0.07309942]
[1770651372210,4.86373019,2056.1,2055.0,0.07309942]
[1770651372211,0.94870698,2056.0,2055.0,0.07309942]
[1770651372413,4.86373019,2056.1,2055.3,0.07309942]
[1770651372812,4.86373019,2056.1,2055.6,0.07309942]
[1770651373045,4.86373019,2056.1,2055.3,0.07309942]
[1770651373210,4.86193624,2056.8,2055.8,0.07309942]
[1770651373545,1.21548035,2057.2,2055.8,0.07309942]
[1770651373546,1.21506682,2057.5,2056.7,0.07309942]
[1770651373740,1.45757573,2058.3,2056.4,0.07309942]
[1770651373741,5.80735971,2058.2,2056.4,0.07309942]
[1770651373942,0.1024,2057.6,2056.5,0.07309942]
[1770651374142,1.05110698,2057.1,2055.3,0.07309942]
[1770651374340,3.403,2057.0,2055.3,0.07309942]
[1770651374545,1.05110698,2056.9,2055.3,0.07309942]
[1770651374716,1.21548035,2056.8,2055.6,0.07309942]
[1770651375244,1.21548035,2056.8,2055.8,0.07309942]
[1770651375551,4.86192143,2056.9,2056.0,0.07309942]
[1770651375749,1.21548035,2056.8,2055.7,0.07309942]
[1770651376063,1.21548035,2056.8,2055.2,0.07309942]
[1770651376263,1.21548035,2056.8,2055.5,0.07309942]
[1770651376444,0.9707133,2056.7,2055.2,0.07309942]
[1770651376752,0.1024,2056.2,2054.7,0.07309942]
[1770651377047,0.9707133,2056.0,2054.3,0.07309942]
[1770651377282,0.9707133,2056.0,2054.6,0.07309942]
[1770651377416,3.402,2056.1,2054.2,1.2170117]
[1770651377417,0.9707133,2055.6,2054.2,0.07309942]
[1770651377618,0.9707133,2055.3,2053.9,0.07309942]
[1770651377832,1.0731133,2055.1,2053.4,0.001]
[1770651378144,1.0731133,2054.8,2053.3,1e-08]
[1770651378752,1.21672263,2054.7,2053.4,0.07309942]
[1770651378956,1.21672263,2054.7,2053.7,0.07309942]
[1770651379155,1.21672263,2054.7,2054.3,0.07309942]
[1770651379338,1.21672263,2054.7,2053.4,0.07309942]
[1770651379659,1.21672263,2054.7,2053.7,0.07309942]
[1770651379960,1.21672263,2054.7,2054.0,0.07309942]
[1770651380134,1.21672263,2054.7,2053.4,0.07309942]
[1770651380334,3.401,2054.6,2053.4,0.07309942]
[1770651380570,4.30103391,2054.6,2053.1,0.07409942]
[1770651380744,1.21684108,2054.5,2053.1,0.07409942]
[1770651380945,1.21684108,2054.5,2053.2,0.07309942]
[1770651381153,1.21684108,2054.5,2053.4,0.07309942]
[1770651381672,1.21684108,2054.5,2053.7,0.07309942]
[1770651381875,1.21684108,2054.5,2054.0,0.07309942]
[1770651382039,1.21684108,2054.5,2053.8,0.07309942]
[1770651382363,1.21684108,2054.5,2053.5,0.07309942]
[1770651382566,1.21684108,2054.5,2053.8,0.07309942]
[1770651382857,1.21684108,2054.5,2053.5,0.07309942]
[1770651383034,1.21684108,2054.5,2053.2,0.07309942]
[1770651383238,1.21684108,2054.5,2053.5,0.07309942]
[1770651383543,1.21684108,2054.5,2053.2,0.07309942]
[1770651384154,1.21684108,2054.5,2053.3,0.07309942]
[1770651384355,0.90003391,2054.4,2053.1,0.001]
[1770651384568,11.84160709,2054.3,2053.1,0.001]
[1770651384782,1.21707803,2054.1,2053.1,0.001]
[1770651384969,1.21707803,2054.1,2053.2,0.07309942]
[1770651385142,1.21707803,2054.1,2053.0,0.07309942]
[1770651385856,1.21707803,2054.1,2052.6,0.07309942]
[1770651386038,1.21707803,2054.1,2052.9,0.07309942]
[1770651386467,0.90003391,2054.0,2052.6,0.07309942]
[1770651386667,0.90003391,2053.8,2051.9,0.07309942]
[1770651386866,1.21737436,2053.6,2052.5,0.07309942]
[1770651387165,1.21737436,2053.6,2052.2,0.07309942]
[1770651387371,1.21737436,2053.6,2052.5,0.07309942]
[1770651387585,2.11740827,2053.6,2052.2,1e-08]
[1770651387949,1.21737436,2053.6,2053.3,0.001]
[1770651388164,1.21737436,2053.6,2052.5,0.07309942]
[1770651388370,0.90003391,2053.5,2052.5,0.07309942]
[1770651388586,1.21737436,2053.6,2051.3,0.07309942]
[1770651388587,1.00243391,2053.4,2051.3,0.07309942]
[1770651388787,4.30203391,2053.3,2051.4,1.21865166]
[1770651388976,4.30203391,2053.3,2052.2,0.07409942]
[1770651388977,1.21761153,2053.2,2052.2,0.07409942]
[1770651389380,1.21761153,2053.2,2052.5,0.07309942]
[1770651392506,1.21761153,2053.2,2052.2,4.94674717]
[1770651392507,1.21761153,2053.2,2052.2,0.001]
[1770651393796,2.11764544,2053.2,2052.2,0.001]
[1770651393959,1.21761153,2053.2,2052.3,0.07309942]
[1770651394665,1.21761153,2053.2,2052.2,0.001]
[1770651395298,1.21761153,2053.2,2052.3,0.07309942]
[1770651395970,4.61956096,2053.3,2052.9,0.07309942]
[1770651396181,4.61955917,2053.3,2053.0,0.07309942]
[1770651396394,1.21713729,2054.0,2053.0,0.07309942]
[1770651396693,4.86824978,2054.2,2053.6,0.07309942]
[1770651396989,1.21901879,2054.3,2053.6,0.07309942]
[1770651397192,1.21901879,2054.3,2053.4,0.07309942]
[1770651397565,1.21901879,2054.3,2053.7,0.07309942]
[1770651398262,0.002,2054.3,2054.0,0.07309942]
[1770651398967,4.84e-06,2054.5,2054.3,0.07309942]
[1770651399364,4.84e-06,2054.5,2054.0,0.07309942]
[1770651399585,4.84e-06,2054.5,2053.7,0.07309942]
[1770651400096,4.84e-06,2054.5,2053.7,1.02101583]
[1770651400388,4.84e-06,2054.5,2054.0,0.07309942]
[1770651400588,4.84e-06,2054.5,2054.3,0.07309942]
[1770651400884,4.84e-06,2054.5,2054.4,0.07309942]
[1770651401084,4.84e-06,2054.5,2054.0,1.2902339]
[1770651401288,4.84e-06,2054.5,2054.3,0.07309942]
[1770651401866,0.00200484,2054.5,2054.0,0.07309942]
[1770651402067,0.00200484,2054.5,2053.7,0.07309942]
[1770651402270,0.00200484,2054.5,2054.0,0.07309942]
[1770651402870,0.00200484,2054.5,2054.3,0.07309942]
[1770651403070,0.00200484,2054.5,2054.0,0.07309942]
[1770651404095,0.00200484,2054.5,2053.7,0.07309942]
[1770651404391,0.00200484,2054.5,2054.2,0.07309942]
[1770651404896,1.21636744,2055.3,2054.6,0.07309942]
[1770651405108,1.21636744,2055.3,2054.2,1.29011356]
[1770651405266,1.21636744,2055.3,2054.6,0.07309942]
[1770651405661,1.21636744,2055.3,2054.7,0.07309942]
[1770651406081,1.21636744,2055.3,2054.3,0.07309942]
[1770651406312,1.21636744,2055.3,2054.7,0.07309942]
[1770651406465,0.94761779,2056.5,2054.7,0.92244845]
[1770651406668,4.34961779,2056.4,2055.1,0.07309942]
[1770651406874,0.94761779,2056.3,2054.8,0.07309942]
[1770651407088,1.21583503,2056.2,2055.4,0.07309942]
[1770651407316,1.21583503,2056.2,2055.5,0.07309942]
[1770651407569,1.21583503,2056.2,2055.8,0.07309942]
[1770651407800,4.86334014,2056.3,2056.1,0.07309942]
[1770651407979,4.86201262,2056.8,2055.8,0.07309942]
[1770651407980,1.21553945,2056.7,2055.8,0.07309942]
[1770651408183,1.21553945,2056.7,2056.1,0.07309942]
[1770651408376,1.21553945,2056.7,2055.8,0.07309942]
[1770651408577,1.21553945,2056.7,2055.5,0.07309942]
[1770651408578,1.21553945,2056.7,2055.9,0.07309942]
[1770651408796,3.401,2056.6,2055.5,0.07309942]
[1770651409122,3.401,2056.6,2055.0,0.07309942]
[1770651409123,10.94157318,2056.2,2055.0,0.07309942]
[1770651409408,11.88919097,2056.2,2054.8,0.07309942]
[1770651409570,0.94761779,2056.1,2054.8,0.07309942]
[1770651409766,10.94157318,2055.7,2054.4,0.07309942]
[1770651409965,0.94761779,2055.6,2054.4,0.07309942]
[1770651410185,10.94157318,2055.7,2054.4,0.07309942]
[1770651410186,1.05001779,2055.5,2054.4,0.07309942]
[1770651410396,3.401,2055.4,2054.4,0.07309942]
[1770651411109,4.86475968,2055.8,2055.1,0.07309942]
[1770651411272,8.26575968,2055.8,2055.0,0.07309942]
[1770651411908,8.26575968,2055.8,2054.7,0.07309942]
[1770651412128,8.26575968,2055.8,2054.7,1e-08]
[1770651412431,8.26575968,2055.8,2054.5,0.07309942]
[1770651412635,0.94761779,2055.7,2054.5,0.07309942]
[1770651413212,1.21618992,2055.6,2054.6,0.07309942]
[1770651413382,1.21618992,2055.6,2054.9,0.07309942]
[1770651413794,1.21618992,2055.6,2054.6,0.07309942]
[1770651414004,1.21618992,2055.6,2054.1,0.07309942]
[1770651414297,1.21618992,2055.6,2054.4,0.07309942]
[1770651414523,1.21618992,2055.6,2054.3,0.07309942]
[1770651414825,0.94761779,2055.5,2054.6,0.001]
[1770651415316,4.86523304,2055.5,2054.8,0.07309942]
[1770651415973,10.94157318,2055.3,2054.1,0.07309942]
[1770651416177,3.4,2055.2,2054.3,0.07309942]
[1770651416411,3.4,2055.2,2054.6,0.07309942]
[1770651416614,3.4,2055.2,2054.3,0.07309942]
[1770651417115,1.21648581,2055.1,2054.1,0.07309942]
[1770651417316,1.21648581,2055.1,2054.4,0.07309942]
[1770651417492,1.21648581,2055.1,2054.1,0.07309942]
[1770651417916,1.21648581,2055.1,2053.7,0.07309942]
[1770651418115,1.21648581,2055.1,2054.1,0.07309942]
[1770651419106,1.21648581,2055.1,2053.7,0.07309942]
[1770651419107,0.94761779,2055.0,2053.7,0.07309942]
[1770651419413,0.94761779,2055.0,2053.8,0.07309942]
[1770651420013,0.94761779,2055.0,2053.5,0.07309942]
[1770651420343,10.94157318,2054.2,2053.2,0.07309942]
[1770651420549,3.4,2054.1,2053.1,0.001]
[1770651421244,3.4,2054.1,2052.4,1.29116663]
[1770651421245,1.21713729,2054.0,2053.0,0.07309942]
[1770651421558,1.21713729,2054.0,2053.6,0.07309942]
[1770651422220,1.21713729,2054.0,2053.0,0.07309942]
[1770651422540,1.21713729,2054.0,2053.2,0.07309942]
[1770651422744,1.21713729,2054.0,2053.5,0.07309942]
[1770651423042,4.86854917,2054.4,2053.8,0.07309942]
[1770651423205,3.401,2054.7,2054.1,0.07309942]
[1770651424042,3.401,2054.7,2053.8,0.07309942]
[1770651424258,3.401,2054.7,2054.1,0.07309942]
[1770651424461,3.401,2054.7,2054.4,0.07309942]
[1770651424804,3.401,2054.7,2054.1,0.07309942]
[1770651425306,1.21678185,2054.6,2054.1,0.07309942]
[1770651426438,1.21824908,2055.6,2054.4,0.07309942]
[1770651426753,8.26600092,2055.5,2054.7,0.07309942]
[1770651426923,8.26600092,2055.5,2054.1,0.07309942]
[1770651427444,8.26600092,2055.5,2053.8,4.86886097]
[1770651427445,17.05219097,2055.2,2053.8,1e-08]
[1770651427740,17.05219097,2055.2,2054.0,0.001]
[1770651428203,1.04369765,2055.1,2054.0,0.001]
[1770651428403,3.401,2055.0,2054.0,0.001]
[1770651428610,3.401,2055.0,2054.1,0.07309942]
[1770651429011,3.401,2055.0,2054.0,0.001]
[1770651429317,1.21678185,2054.6,2053.2,0.07409942]
[1770651429522,3.401,2054.5,2053.5,0.07309942]
[1770651430238,3.401,2054.5,2053.2,0.07409942]
[1770651430444,3.401,2054.5,2053.5,0.07309942]
[1770651431156,3.401,2054.5,2053.6,0.07309942]
[1770651431317,1.21690031,2054.4,2053.9,0.07309942]
[1770651432042,4.86760124,2054.8,2053.9,0.07309942]
[1770651432043,1.21672263,2054.7,2054.2,0.07309942]
[1770651432643,3.401,2055.2,2054.5,0.07309942]
[1770651433244,1.21648581,2055.1,2054.6,0.07309942]
[1770651433449,1.21648581,2055.1,2054.2,0.07309942]
[1770651433627,1.21648581,2055.1,2054.6,0.07309942]
[1770651433838,1.21648581,2055.1,2054.3,0.07309942]
[1770651434030,1.21648581,2055.1,2054.6,0.07309942]
[1770651434231,1.21648581,2055.1,2054.3,0.07309942]
[1770651434430,1.21648581,2055.1,2054.8,0.07309942]
[1770651435069,1.21648581,2055.1,2054.3,4.94081993]
[1770651435370,1.21648581,2055.1,2054.9,0.07309942]
[1770651436165,1.21648581,2055.1,2054.6,0.07309942]
[1770651436343,1.21648581,2055.1,2054.9,0.07309942]
[1770651436944,1.21648581,2055.1,2054.3,0.07309942]
[1770651437143,1.21648581,2055.1,2054.0,0.07309942]
[1770651438664,1.21648581,2055.1,2053.6,0.07309942]
[1770651438864,1.21648581,2055.1,2054.6,0.07309942]
[1770651439044,1.21648581,2055.1,2054.3,0.07309942]
[1770651439239,4.86594326,2055.2,2054.0,0.07309942]
[1770651439446,4.86594326,2055.2,2054.4,0.07309942]
[1770651439760,4.86594326,2055.2,2054.0,1.2902356]
[1770651439761,4.86594326,2055.2,2054.0,0.07309942]
[1770651439961,4.86594326,2055.2,2054.3,0.07309942]
[1770651440631,0.5,2055.0,2054.3,0.07309942]
[1770651441289,1.21660421,2054.9,2054.0,0.07309942]
[1770651441440,1.21660421,2054.9,2054.3,0.07309942]
[1770651441840,3.401,2054.8,2054.2,0.001]
[1770651442161,3.401,2054.8,2054.0,0.07409942]
[1770651442352,3.401,2054.8,2053.9,1e-08]
[1770651443139,3.401,2054.8,2054.2,0.07309942]
[1770651443444,1.21672263,2054.7,2054.5,0.07309942]
[1770651443744,1.21672263,2054.7,2054.2,0.07309942]
[1770651444157,1.21672263,2054.7,2054.5,0.07309942]
[1770651444467,4.86546717,2055.4,2054.5,0.07309942]
[1770651444468,4.86453404,2055.7,2055.1,0.07309942]
[1770651444665,4.86453404,2055.7,2055.4,0.07309942]
[1770651445172,4.86453404,2055.7,2054.9,0.07309942]
[1770651445540,4.86453404,2055.7,2055.0,0.07309942]
[1770651446471,4.86453404,2055.7,2055.3,0.07309942]
[1770651446668,1.21613075,2055.7,2055.3,0.07309942]
[1770651447080,4.86334014,2056.4,2055.3,0.07309942]
[1770651447244,8.26334014,2056.4,2055.0,0.07309942]
[1770651447567,9.26334014,2056.4,2055.0,0.07309942]
[1770651447754,0.5,2056.2,2055.0,0.07309942]
[1770651448183,0.5,2056.2,2054.9,0.07309942]
[1770651448388,1.0,2056.1,2054.5,0.07309942]
[1770651448544,1.04357263,2056.0,2054.5,0.07309942]
[1770651448744,4.4,2055.9,2054.5,0.07309942]
[1770651449169,10.9578585,2055.8,2054.5,0.07309942]
[1770651449478,1.21613075,2055.7,2054.5,0.07309942]
[1770651449675,1.21613075,2055.7,2054.8,0.07309942]
[1770651449878,1.21613075,2055.7,2055.1,0.07309942]
[1770651450055,1.21613075,2055.7,2054.5,0.07309942]
[1770651450265,1.21613075,2055.7,2054.8,0.07309942]
[1770651450458,1.21613075,2055.7,2055.4,0.07309942]
[1770651451056,1.21610506,2055.8,2055.4,0.07309942]
[1770651451580,3.4,2056.3,2055.7,0.07309942]
[1770651451745,3.4,2056.3,2056.0,0.07309942]
[1770651451953,1.21559856,2056.6,2056.0,0.07309942]
[1770651452156,1.21559856,2056.6,2055.7,0.07309942]
[1770651452157,1.21559856,2056.6,2055.4,0.07309942]
[1770651452506,1.21559856,2056.6,2056.0,0.07309942]
[1770651452681,1.21559856,2056.6,2055.8,0.07309942]
[1770651452855,1.21559856,2056.6,2055.4,0.07309942]
[1770651453051,1.21559856,2056.6,2055.7,0.07309942]
[1770651453283,1.21559856,2056.6,2055.4,0.07309942]
[1770651453490,3.4,2056.5,2055.8,0.07309942]
[1770651454304,3.4,2056.5,2055.0,0.07309942]
[1770651454502,1.0,2056.3,2054.3,1.21691656]
[1770651454703,2.04264486,2056.2,2054.8,0.07309942]
[1770651454888,1.0,2055.8,2054.2,0.07309942]
[1770651455069,4.399,2055.7,2054.3,0.07309942]
[1770651455269,1.0,2055.6,2054.3,0.07309942]
[1770651455493,1.21624908,2055.5,2054.3,0.07309942]
[1770651455796,10.9578585,2055.4,2054.1,0.07409942]
[1770651456099,10.9578585,2055.4,2054.2,0.07309942]
[1770651456405,10.9578585,2055.4,2054.3,0.07309942]
[1770651456583,1.21624908,2055.5,2054.3,0.07309942]
[1770651457199,1.21624908,2055.5,2054.4,0.07309942]
[1770651457601,13.10360362,2055.4,2054.1,0.07309942]
[1770651457803,0.5,2055.3,2054.4,0.07309942]
[1770651458096,3.4,2055.2,2054.1,0.07309942]
[1770651458284,3.4,2055.2,2054.4,0.07309942]
[1770651458672,3.4,2055.2,2054.7,0.07309942]
[1770651459490,1.21648581,2055.1,2054.4,0.07309942]
[1770651459673,1.21648581,2055.1,2054.1,1.29017]
[1770651460019,1.21648581,2055.1,2054.6,0.07309942]
[1770651460198,1.21648581,2055.1,2054.1,0.07309942]
[1770651460199,1.21648581,2055.1,2054.5,0.07309942]
[1770651462003,1.21648581,2055.1,2054.9,0.07309942]
[1770651462303,1.21648581,2055.1,2054.5,1.2899335]
[1770651462499,8.26594326,2055.2,2055.0,0.07309942]
[1770651462500,1.21646835,2055.2,2055.0,0.07309942]
[1770651462871,1.21624908,2055.5,2055.0,0.07309942]
[1770651463071,1.21624908,2055.5,2054.5,1.2899335]
[1770651464994,1.21624908,2055.5,2054.4,1.21686671]
[1770651465212,1.21624908,2055.5,2054.5,1.21683274]
[1770651465423,1.21624908,2055.5,2054.9,0.07309942]
[1770651465622,1.21624908,2055.5,2055.0,0.07309942]
[1770651466002,1.21624908,2055.5,2054.3,0.07309942]
[1770651466324,1.21624908,2055.5,2054.5,1.2168352]
[1770651466621,1.21624908,2055.5,2054.3,0.07309942]
[1770651467024,1.2160716,2055.8,2054.9,0.07309942]
[1770651467322,1.2160716,2055.8,2054.3,1.29003236]
[1770651467495,1.2160716,2055.8,2054.5,1.21683606]
[1770651467699,0.5,2055.6,2054.4,4.86747363]
[1770651467909,0.5,2055.6,2055.2,0.07309942]
[1770651468108,0.5,2055.6,2054.4,4.86747363]
[1770651468306,1.2160716,2055.8,2054.4,4.86747363]
[1770651469108,0.002,2055.6,2054.4,4.86747363]
[1770651470320,0.002,2055.6,2054.4,8.26747363]
[1770651472413,0.002,2055.6,2054.4,4.61690031]
[1770651472918,0.002,2055.6,2054.5,6.108077]
[1770651473231,0.002,2055.6,2054.5,2.819168]
[1770651473832,0.002,2055.6,2054.6,1.21678185]
[1770651475796,0.002,2055.6,2054.5,4.86723218]
[1770651476012,0.002,2055.6,2054.6,8.187004]
[1770651476610,0.002,2055.6,2054.6,7.713524]
[1770651476928,0.002,2056.4,2054.7,18.939964]
[1770651477129,0.002,2056.4,2056.1,0.07309942]
[1770651477630,1.21506682,2057.6,2056.1,0.07309942]
[1770651477829,4.86015362,2057.8,2056.2,1.21583503]
[1770651478340,1.0,2057.7,2056.5,0.07309942]
[1770651478703,2.58499777,2058.7,2057.1,0.2335703]
[1770651478903,1.22941804,2059.5,2058.6,0.07309942]
[1770651479215,1.0,2059.2,2058.3,0.07309942]
[1770651479421,1.0,2059.2,2058.1,0.07309942]
[1770651479609,1.0,2059.0,2057.8,0.07309942]
[1770651479930,1.21424061,2058.9,2057.8,0.07309942]
[1770651480139,1.0,2058.8,2057.4,3.399]
[1770651480433,1.0,2058.8,2057.5,0.25381523]
[1770651480434,3.399,2058.7,2057.5,0.25381523]
[1770651480601,3.399,2058.7,2057.6,0.25381523]
[1770651480803,3.399,2058.7,2056.8,0.25381523]
[1770651481026,3.399,2058.7,2056.7,8.26095149]
[1770651481027,4.399,2058.7,2057.1,1.21529999]
[1770651481200,1.0,2058.6,2056.9,1.46923085]
[1770651481402,1.0,2058.6,2056.9,0.25381523]
[1770651481614,3.399,2058.7,2057.3,4.86058951]
[1770651481815,4.85698252,2058.9,2057.1,0.1024]
[1770651482032,1.21412267,2059.1,2057.2,17.412123]
[1770651482245,1.21412267,2059.1,2057.4,7.675434]
[1770651482602,1.21412267,2059.1,2057.5,0.25381523]
[1770651483205,4.85637679,2059.2,2057.6,13.033321]
[1770651483206,1.21410524,2059.2,2057.6,13.033321]
[1770651483552,0.002,2059.3,2057.9,25.868826]
[1770651483863,0.002,2059.5,2058.1,5.501021]
[1770651484022,0.01749464,2060.4,2058.6,0.1024]
[1770651484351,1.2308716,2060.4,2058.9,2.594655]
[1770651484556,1.2288716,2060.4,2058.6,0.24981523]
[1770651484846,1.0,2060.1,2058.6,0.24981523]
[1770651485732,1.21359223,2060.0,2058.6,0.24981523]
[1770651485929,1.21359223,2060.0,2058.6,1.46422909]
[1770651486130,1.21359223,2060.0,2058.6,1.46423255]
[1770651486430,1.21359223,2060.0,2058.6,0.24981523]
[1770651486627,1.21359223,2060.0,2058.7,0.24981523]
[1770651486855,1.21341552,2060.3,2058.7,0.24981523]
[1770651487254,1.0,2060.2,2058.8,0.24981523]
[1770651487424,1.0,2060.2,2058.7,0.24981523]
[1770651487625,4.86915672,2060.4,2058.8,17.431303]
[1770651487626,1.22888732,2060.4,2058.8,17.431303]
[1770651487820,0.01549464,2060.4,2059.1,7.560969]
[1770651488018,0.01549464,2060.4,2059.2,0.2335703]
[1770651488320,1.22886419,2060.4,2059.3,2.766298]
[1770651488522,1.22886419,2060.4,2059.2,0.24981523]